Cogmind - Beta 16.1 @@@ ROGUE MODE // 2026.01.17 @ 22:17:34 Player: BlobtheGreat Result: Escaped! Performance ------------- Evolutions (9) 4500 Regions Visited (30) 6000 Robots Destroyed (218) 1090 Value Destroyed (11739) 11739 Prototype IDs (41) 820 Alien Tech Used (0) 0 Bonus (11866) 11866 TOTAL SCORE: 36015 Bonus ------- High Alert Combat Kills 547 Follower Combat Kills 3445 Entered Garrisons 1600 Used RIF Installer 4000 Met R17 at Cetus 500 Win 3000 Friendly Fire -1226 Cogmind --------- Core Integrity 1241/1600 Matter 273/300 Energy 39/100 System Corruption 1% Temperature Warm (107) Movement Flying (30) Location To Epsilon Eridani Parts ------- > --- POWER (2) -------- (None) > --- PROPULSION (6) --- Cooled Nuclear Pulse Thruster Cooled Nuclear Pulse Thruster Nuclear Pulse Array > --- UTILITY (14) ----- Advanced Sensor Array Advanced Signal Interpreter Improved Hacking Suite Improved Hacking Suite Improved System Shield Improved System Shield > --- WEAPON (3) ------- (None) > --- INVENTORY (5) ---- High-powered Transdimensional Reconstructor Nova Cannon Fusion Bomb Launcher Advanced Remote Datajack Portable AFG (100) Peak State ------------ > --- POWER ------------ Hybrid Antimatter Reactor Compact Particle Reactor > --- PROPULSION ------- Myomer Leg Advanced Myomer Leg Combat Antigrav System Impulse Thruster Array > --- UTILITY ---------- Advanced Heat Sink Advanced Heat Sink Advanced Heat Sink Advanced Heat Sink Advanced Signal Interpreter Improved Light Armor Plating Advanced Force Field Improved Hacking Suite Experimental Hacking Suite > --- WEAPON ----------- Nova Cannon Railgun Helical Railgun > --- INVENTORY -------- Micro Antimatter Reactor Fusion Bomb Launcher Advanced Remote Datajack Core Stripper [Rating: 133] Favorites ----------- Power Light Nuclear Core Engine Reinforced Ion Engine Power Core Light Nuclear Core Reactor Light Antimatter Reactor Propulsion Light Treads Treads Light Treads Leg Myomer Leg Hover Unit Combat Airjet Flight Unit Improved Cesium-ion Thruster Utility Improved Heat Sink Device Improved Heat Sink Storage Huge Storage Unit Processor Advanced Signal Interpreter Hackware Hacking Suite Protection Improved Medium Armor Plating Weapon Advanced Beam Cannon Energy Gun Medium Laser Energy Cannon Advanced Beam Cannon Ballistic Gun Improved Assault Rifle Ballistic Cannon Hypervelocity Mass Driver Launcher Mini Grenade Launcher Special Weapon Remote Datajack Impact Weapon Flail Slashing Weapon Chainsword Piercing Weapon Enhanced Force Lance Special Melee Weapon Advanced Datajack Build | -11 -10 -10 -9 -9 -9 -8 -8 -8 -8 -7 -7 -7 -7 -6 -6 -6 -6 -5 -5 -4 -4 -4 -4 -4 -4 -3 -3 -2 -2 -1 ------- Run | Yrd Mat Min Mat Sto Gar Mat Gar Mat Gar Fac Gar Fac Gar Fac Was Fac Gar Fac Gar Fac Ext Cet Arc Hub Gar Res Qua Res Tes Acc Slots Evolved 18 | . . . 2 . . 2 . . . 2 . . . 2 . . . 2 . 2 . . . . . 2 . 2 . 2 Power 1 | . . . . . . . . . . . . . . . . . . . . . . . . . . 1 . . . . Propulsion 4 | . . . 1 . . 1 . . . . . . . . . . . . . 1 . . . . . . . 1 . . Utility 12 | . . . 1 . . 1 . . . 2 . . . 2 . . . 2 . 1 . . . . . . . 1 . 2 Weapon 1 | . . . . . . . . . . . . . . . . . . . . . . . . . . 1 . . . . Parts Attached 226 | 7 7 4 10 6 4 2 4 2 6 12 7 10 14 12 . 3 5 4 15 3 15 4 1 . 6 26 19 1 4 13 Power 24 | 1 1 1 1 . . . . . 1 . 1 . 3 1 . . 1 . 1 1 2 . . . 1 3 3 . . 2 Engine 3 | 1 1 . 1 . . . . . . . . . . . . . . . . . . . . . . . . . . . Core 11 | . . 1 . . . . . . 1 . 1 . 3 1 . . 1 . 1 1 1 . . . . . . . . . Reactor 10 | . . . . . . . . . . . . . . . . . . . . . 1 . . . 1 3 3 . . 2 Propulsion 63 | 2 . 2 4 3 2 2 2 . 2 7 . 4 1 3 . 1 2 . 1 1 4 . . . 2 9 5 . 2 2 Treads 21 | 2 . 2 3 3 2 2 2 . 2 . . . . . . . . . . 1 . . . . . 2 . . . . Leg 4 | . . . . . . . . . . . . . . . . . . . . . . . . . . 4 . . . . Wheel . | . . . . . . . . . . . . . . . . . . . . . . . . . . . . . . . Hover 8 | . . . . . . . . . . 6 . . . . . . . . . . . . . . . 2 . . . . Flight 30 | . . . 1 . . . . . . 1 . 4 1 3 . 1 2 . 1 . 4 . . . 2 1 5 . 2 2 Utility 100 | 2 3 . 3 . 1 . 2 1 2 5 5 4 9 7 . 1 . 4 9 1 6 4 1 . 3 11 6 1 1 8 Device 23 | 1 1 . . . 1 . 1 . . . . . . 2 . . . 1 . . . 1 . . . 7 5 1 1 1 Storage 5 | 1 2 . 1 . . . . . . . . . . . . . . . . . . . . . . . . . . 1 Processor 7 | . . . . . . . . 1 . . . . . 1 . . . 1 2 . . . . . . . . . . 2 Hackware 45 | . . . . . . . . . . 3 4 4 7 3 . 1 . 2 7 . 3 1 1 . 3 2 . . . 4 Protection 20 | . . . 2 . . . 1 . 2 2 1 . 2 1 . . . . . 1 3 2 . . . 2 1 . . . Artifact . | . . . . . . . . . . . . . . . . . . . . . . . . . . . . . . . Weapon 39 | 2 3 1 2 3 1 . . 1 1 . 1 2 1 1 . 1 2 . 4 . 3 . . . . 3 5 . 1 1 Energy Gun 1 | 1 . . . . . . . . . . . . . . . . . . . . . . . . . . . . . . Energy Cannon 10 | . 2 . . 2 . . . . . . . . . 1 . . . . 1 . . . . . . 2 1 . . 1 Ballistic Gun 6 | 1 . . 1 . . . . 1 . . . . . . . . . . . . . . . . . 1 2 . . . Ballistic Cannon 2 | . . . . . . . . . . . . . . . . . 1 . . . 1 . . . . . . . . . Launcher 6 | . . 1 1 1 1 . . . . . . . . . . . . . 1 . . . . . . . 1 . . . Special Weapon 6 | . . . . . . . . . 1 . 1 1 1 . . . . . . . 1 . . . . . . . 1 . Impact Weapon 1 | . 1 . . . . . . . . . . . . . . . . . . . . . . . . . . . . . Slashing Weapon 3 | . . . . . . . . . . . . 1 . . . 1 1 . . . . . . . . . . . . . Piercing Weapon 2 | . . . . . . . . . . . . . . . . . . . 1 . . . . . . . 1 . . . Special Melee Weapon 2 | . . . . . . . . . . . . . . . . . . . 1 . 1 . . . . . . . . . Unidentified Prototypes 15 | . 1 . 2 1 . . . . . 2 . 1 . . . . . . 1 . . 3 . . . 2 2 . . . Parts Lost 81 | . 1 1 3 . . . 5 . 2 . 4 . 3 1 . . 7 . 2 3 7 . . . 10 9 8 3 1 11 Power 14 | . 1 . 1 . . . . . 1 . 1 . 2 . . . . . . 1 1 . . . 1 1 1 . . 3 Propulsion 27 | . . 1 2 . . . 3 . 1 . . . . 1 . . 1 . . . 4 . . . 4 3 3 2 . 2 Utility 28 | . . . . . . . 1 . . . 2 . 1 . . . 3 . . 2 2 . . . 4 4 2 1 1 5 Weapon 12 | . . . . . . . 1 . . . 1 . . . . . 3 . 2 . . . . . 1 1 2 . . 1 Highest Loss Streak 8 | . 1 1 2 . . . 3 . 1 . 3 . 2 1 . . 4 . 1 3 2 . . . 5 3 4 3 1 8 To Critical Strikes . | . . . . . . . . . . . . . . . . . . . . . . . . . . . . . . . Average Backups 12 | 4 12 18 19 23 23 23 21 21 23 15 14 7 4 5 5 5 4 4 4 4 4 4 3 3 4 4 4 3 3 4 Power . | . . . . . . . . . . . . . . . . . . . . . . . . . . . . . . . Propulsion 2 | 2 . 1 3 7 6 4 3 2 3 1 3 1 . . . . . . . . . . . . . . . . . . Utility 5 | . 6 9 8 9 10 11 11 12 13 8 7 3 2 3 3 3 2 2 2 2 1 1 . . . . . . 1 . Weapon 3 | . 4 8 6 6 6 6 5 5 5 4 2 1 1 1 1 1 . . . 1 1 2 2 2 2 2 2 . 1 1 Tool/Special . | . . . . . . . . . . . . . . . . . . . . . . . . . . . . . . . Unused Backups 39 | . 6 1 9 4 2 . . . 3 3 . 7 . . . . . . . . . . . . . 1 2 . . 1 Power . | . . . . . . . . . . . . . . . . . . . . . . . . . . . . . . . Propulsion 12 | . 4 . . 2 . . . . 2 2 . 2 . . . . . . . . . . . . . . . . . . Utility 14 | . . 1 3 1 2 . . . 1 1 . 5 . . . . . . . . . . . . . . . . . . Weapon 12 | . 2 . 6 1 . . . . . . . . . . . . . . . . . . . . . 1 2 . . . Tool/Special 1 | . . . . . . . . . . . . . . . . . . . . . . . . . . . . . . 1 Average Slot Usage (%) 89 | . 99 100 98 100 100 90 95 99 99 97 91 99 96 96 93 95 50 69 87 78 87 79 88 89 70 53 71 45 38 61 Engine 3 | . 13 7 3 11 11 9 9 9 3 . . . . . . . . . . . . . . . . . . . . . Core 3 | . . 6 7 . . . . . 4 7 5 7 6 6 6 6 2 5 5 4 3 . . . . . . . . . Reactor 1 | . . . . . . . . . . . . . . . . . . . . . 1 5 5 5 3 4 7 4 4 4 Treads 15 | . 28 28 32 33 33 36 35 36 35 1 . . . . . . . . . . . . . . . 2 . . . . Hover 2 | . . . . . . . . . . 28 30 5 . . . . . . . . . . . . . 3 3 . . . Flight 7 | . . . . . . . . . . . . 24 30 23 20 21 12 23 20 15 19 15 15 15 9 2 5 15 12 18 Device 8 | . 14 14 11 11 11 9 14 18 9 3 . . . 5 6 6 . 4 2 4 4 . 5 5 4 9 18 6 3 7 Storage 5 | . 14 14 11 11 11 9 9 9 9 7 7 1 . . . . . . . . . . . . . . . . . . Processor 3 | . . . . . . . . . 9 4 . . . 5 6 6 6 5 6 10 10 10 10 10 9 4 4 4 4 9 Hackware 13 | . . . . . . . . . . 20 25 39 37 39 40 40 22 20 41 35 26 36 36 36 31 5 9 8 8 16 Protection 5 | . . . 10 11 11 9 8 9 9 7 7 3 5 . . . 1 5 5 1 10 4 5 5 3 . 1 . . . Energy Cannon 9 | . 25 27 21 22 15 9 12 17 7 . . . . . . . . . . . . . . . . 5 4 . . . Ballistic Gun 1 | . . . . . . . . . 9 . . . . . . . . . . . . . . . . 2 6 . . . Special Weapon 1 | . . . . . . . . . . 6 5 5 7 5 6 6 . 1 . . . 3 5 5 3 . . . . . Impact Weapon 1 | . . . . . 5 9 4 . 1 6 6 1 . . . . . . . . . . . . . . . . . . Peak Build Rating 133 | 8 16 18 24 28 26 27 35 36 40 54 53 54 59 67 62 67 67 71 87 86 99 82 91 91 91 115 133 94 81 132 Average Rating 48 | 6 14 16 21 24 24 25 32 35 37 51 48 51 54 62 62 63 31 53 71 82 89 71 90 91 71 73 111 82 73 105 On Entrance 50 | . 8 16 18 21 25 23 27 35 36 32 47 48 54 55 62 62 67 43 67 80 82 67 82 91 91 11 94 87 68 81 Avg Prop Armor Cover (%) 5 | . . . . . . . . . . . 3 . . . . . . . . 9 . . . . . 5 5 4 . . Naked Turns . | . . . . . . . . . . . . . . . . . . . . . . . . . . . . . . . Heaviest Build 109 | 15 54 54 104 104 104 102 109 109 109 38 38 37 22 21 15 16 23 18 20 31 31 29 31 31 31 87 75 21 19 39 Greatest Support 89 | 40 40 40 60 69 69 83 89 89 89 48 44 44 24 24 18 24 24 22 28 28 33 33 33 33 33 80 80 32 38 44 Greatest Overweight (x) 3 | . 1 1 2 1 1 1 1 1 1 1 1 3 . . . . . . . 2 1 1 . . 1 1 2 . . . Average Overweight (x) . | . . 1 . 1 1 1 1 1 1 . . . . . . . . . . . . . . . . . . . . . Largest Inventory Capacity 25 | 8 20 20 25 25 25 25 25 25 25 25 15 15 5 5 5 5 5 5 5 5 5 5 5 5 5 5 5 5 5 15 Average Capacity 14 | 7 17 20 24 25 25 25 25 25 25 15 15 7 5 5 5 5 5 5 5 5 5 5 5 5 5 5 5 5 5 6 Most Carried 25 | 8 20 20 23 25 25 25 25 24 25 25 15 15 5 5 5 5 5 5 5 5 5 5 4 3 5 5 5 4 5 6 Average Carried 13 | 5 13 19 20 24 24 24 22 22 24 14 14 6 4 5 5 5 4 4 4 4 4 4 3 3 4 4 4 3 4 5 Final Capacity 25 | 8 20 20 25 25 25 25 25 25 25 15 15 5 5 5 5 5 5 5 5 5 5 5 5 5 5 5 5 5 5 5 Final Carried 25 | 8 20 20 21 25 25 25 22 23 25 14 15 4 5 5 5 5 5 4 5 4 5 4 3 3 3 5 3 4 5 5 Class Distribution -------------------- 22% | Mutant 21% | Bothacker-Mutant 13% | Scavenger-Mutant 7% | Botlord-Sprinter 6% | Bothacker-Sprinter 5% | Hacker-Sprinter 5% | Hacker-Mutant 4% | Botlord-Scout Dominant Class ---------------- Mutant | -10/Materials Mutant | -10/Mines Scavenger-Mutant | -9/Materials Mutant | -9/Storage Bothacker-Mutant | -9/Garrison Bothacker-Mutant | -8/Materials Bothacker-Mutant | -8/Garrison Bothacker-Mutant | -8/Materials Bothacker-Mutant | -8/Garrison Bothacker-Mutant | -7/Factory Bothacker-Mutant | -7/Garrison Bothacker-Sprinter | -7/Factory Botlord-Sprinter | -7/Garrison Botlord-Sprinter | -6/Factory Bothacker-Sprinter | -6/Waste Bothacker-Sprinter | -6/Factory Hacker-Mutant | -6/Garrison Hacker-Sprinter | -5/Factory Hacker-Mutant | -5/Garrison Hacker-Scout | -4/Factory Botlord-Scout | -4/Extension Bothacker-Mutant | -4/Cetus Bothacker-Sprinter | -4/Archives Bothacker-Sprinter | -4/Hub_04(d) Botlord-Mutant | -4/Garrison Mutant | -3/Research Scavenger-Tank | -3/Quarantine Hacker-Mutant | -2/Research Hacker-Sprinter | -2/Testing Hacker-Sprinter | -1/Access Resources | -11 -10 -10 -9 -9 -9 -8 -8 -8 -8 -7 -7 -7 -7 -6 -6 -6 -6 -5 -5 -4 -4 -4 -4 -4 -4 -3 -3 -2 -2 -1 ----------- Run | Yrd Mat Min Mat Sto Gar Mat Gar Mat Gar Fac Gar Fac Gar Fac Was Fac Gar Fac Gar Fac Ext Cet Arc Hub Gar Res Qua Res Tes Acc Matter Collected 7166 | 318 274 218 255 51 285 . 193 . 599 112 584 78 584 222 . . 9 152 428 20 757 412 . . 476 524 240 . . 375 Remotely . | . . . . . . . . . . . . . . . . . . . . . . . . . . . . . . . Salvage Created 8461 | 170 562 33 608 510 362 19 305 . 1024 112 450 136 242 138 . . 56 . . 85 850 421 32 37 485 867 519 64 . 374 Parts 499 | 13 32 8 40 45 30 . 18 . 54 4 18 7 12 9 . . 9 . . 5 33 24 3 2 20 48 35 7 . 23 Haulers Intercepted 6 | . 2 . 1 2 . . . . . 1 . . . . . . . . . . . . . . . . . . . . Recyclers Shooed 2 | . . . . 2 . . . . . . . . . . . . . . . . . . . . . . . . . . Parts Field Recycled . | . . . . . . . . . . . . . . . . . . . . . . . . . . . . . . . Retrieved Matter . | . . . . . . . . . . . . . . . . . . . . . . . . . . . . . . . Parts Self-Destructed . | . . . . . . . . . . . . . . . . . . . . . . . . . . . . . . . Prevented . | . . . . . . . . . . . . . . . . . . . . . . . . . . . . . . . Parts Restored . | . . . . . . . . . . . . . . . . . . . . . . . . . . . . . . . Kills | -11 -10 -10 -9 -9 -9 -8 -8 -8 -8 -7 -7 -7 -7 -6 -6 -6 -6 -5 -5 -4 -4 -4 -4 -4 -4 -3 -3 -2 -2 -1 ------- Run | Yrd Mat Min Mat Sto Gar Mat Gar Mat Gar Fac Gar Fac Gar Fac Was Fac Gar Fac Gar Fac Ext Cet Arc Hub Gar Res Qua Res Tes Acc Combat Hostiles Destroyed 164 | . 13 6 8 11 18 . 8 . 20 . 17 . 4 . . . 8 . . 1 7 5 . . 9 12 10 5 . 2 Melee 18 | . . . . . 1 . . . . . 1 . 4 . . . 3 . . 1 1 . . . 5 . . . . 2 Guns 6 | . . . . . . . . . 4 . . . . . . . . . . . . . . . . 2 . . . . Cannons 79 | . 13 . 8 7 7 . 6 . 10 . . . . . . . . . . . 6 5 . . 4 8 5 . . . AOE 49 | . . 6 . 4 8 . 2 . 4 . 11 . . . . . 5 . . . . . . . . . 4 5 . . Classes Destroyed 16 | 2 5 . 3 . 1 . . . 3 1 . . . . . . . . . . . . . . 1 . . . . . Worker 6 | . 1 . 1 2 . . . . . . . 1 . . . . . . . . . . . . . . . 1 . . Builder 6 | . . . 1 1 . 1 . . . . . . . . . . . . . . 2 . . . . . 1 . . . Tunneler 5 | 4 1 . . . . . . . . . . . . . . . . . . . . . . . . . . . . . Hauler 6 | . 2 . 1 2 . . . . . 1 . . . . . . . . . . . . . . . . . . . . Recycler 9 | 1 . . 2 . . . . . . 1 . 2 . . . . . . . . 2 . . . . . . . . 1 Operator 7 | . . . . . . . . . . 1 . . . 2 . . . . . . . . 1 . . . . . . 3 Watcher 12 | . 1 . 1 1 . . . . . . . . . 3 . . . . . . 2 1 . 1 . . 1 . . 1 Swarmer 56 | . 6 6 . 4 13 . 2 . 4 . 4 . . . . . 4 . . . . . . . 2 . 5 5 . 1 Cutter 6 | . . . . . . . . . 2 . . . . . . . 4 . . . . . . . . . . . . . Grunt 38 | . 7 . 3 1 4 . 6 . 4 . 8 . . . . . . . . . . . . . 3 . 2 . . . Brawler 1 | . . . 1 . . . . . . . . . . . . . . . . . . . . . . . . . . . Sentry 28 | . . . 4 6 . . . . 3 . 5 . 3 . . . . . . 1 4 . . . . 2 . . . . Specialist 2 | . . . . . . . . . 2 . . . . . . . . . . . . . . . . . . . . . Hunter 11 | . . . . . . . . . 3 . . . . . . . . . . . 3 . . . 3 2 . . . . Programmer 18 | . . . . . 2 . . . 2 . . . 2 . . . . . . . . . . . . 8 3 . . 1 Behemoth 1 | . . . . . . . . . . . . . . . . . . . . . . . . . 1 . . . . . Cetus Guard 5 | . . . . . . . . . . . . . . . . . . . . . . 5 . . . . . . . . Best Kill Streak 8 | 2 6 6 4 8 3 1 3 . 4 1 5 1 2 2 . . 8 . . 1 4 5 1 1 2 5 5 6 . 2 Combat Bots Only 8 | . 5 6 3 4 3 . 3 . 4 . 5 . 2 . . . 8 . . 1 2 4 . . 2 5 5 5 . 1 Max Kills in Single Turn 4 | 1 1 2 2 4 3 1 1 . 2 1 2 1 1 1 . . 2 . . 1 2 1 1 1 1 1 3 3 . 1 Gunslinging . | . . . . . . . . . . . . . . . . . . . . . . . . . . . . . . . Exploded 3 | . . 2 . 2 3 . 1 . 2 . 2 . . . . . 2 . . . . . . . . . 3 3 . . Melee 1 | . . . . . 1 . . . . . 1 . 1 . . . 1 . . 1 1 . . . 1 . . . . 1 Uniques/NPCs Destroyed 1 | . . . . . . . . . . . . . . . . . . . . . . 1 . . . . . . . . A7 (-4/Cetus) Combat | -11 -10 -10 -9 -9 -9 -8 -8 -8 -8 -7 -7 -7 -7 -6 -6 -6 -6 -5 -5 -4 -4 -4 -4 -4 -4 -3 -3 -2 -2 -1 -------- Run | Yrd Mat Min Mat Sto Gar Mat Gar Mat Gar Fac Gar Fac Gar Fac Was Fac Gar Fac Gar Fac Ext Cet Arc Hub Gar Res Qua Res Tes Acc Hostile Shots Fired 1495 | . 53 27 41 32 54 6 63 . 142 42 184 . 122 10 . . 75 . 5 38 39 . 1 3 134 155 134 24 30 81 Missed 594 | . 13 10 8 11 10 1 17 . 40 21 85 . 64 5 . . 29 . 2 17 20 . 1 1 51 57 55 13 22 41 Hits 901 | . 40 17 33 21 44 5 46 . 102 21 99 . 58 5 . . 46 . 3 21 19 . . 2 83 98 79 11 8 40 Melee 22 | . . . 3 . . . . . 4 . . . . . . . 11 . . . . . . . 4 . . . . . Projectile 879 | . 40 17 30 21 44 5 46 . 98 21 99 . 58 5 . . 35 . 3 21 19 . . 2 79 98 79 11 8 40 AOE 7 | . . . . . . . . . 2 . . . 3 . . . 1 . . . . . . . . . . . . 1 Critical Strikes 43 | . 2 . . . 2 . 1 . 4 . 1 . 1 . . . 8 . . . 3 1 . . . 12 6 . . 2 Actively Blocked 2 | . . . . . . . . . . . . . . . . . . . . . 1 1 . . . . . . . . Part Disruptions 3 | . . . . . . . . . . . . . . . . . . . . . . . . . . 2 1 . . . Damage Taken 13850 | . 418 133 463 260 512 73 714 . 1227 178 849 . 603 105 . . 858 . 363 382 460 88 . 23 1263 2217 1229 262 141 1029 Core 2901 | . 25 32 38 28 44 15 105 . 85 . 133 . 149 13 . . 415 . 196 106 75 . . . 544 227 223 20 69 359 Absorbed by Shields 1145 | . . . . . . . . . 309 . 43 . 86 . . . 64 . . . 68 . . . 134 . 441 . . . Redirected to Shielding 49 | . . . . . . . . . . . . . . . . . . . . . 36 13 . . . . . . . . Regen/Repaired (Parts) 522 | . . . . . . . . . . . . . . 58 . . . 92 . 160 . 2 27 8 175 . . . . . Core Remaining (%) 70 | 100 . 77 . . 72 . . . 62 . . . 59 . . . 49 . 80 . . . . . 36 . 65 . 93 77 Volleys Fired 672 | 16 45 5 31 18 29 . 20 . 97 16 54 3 46 9 1 3 5 2 8 . 74 34 . . 48 58 37 3 1 9 Largest 3 | 2 2 2 2 2 2 . 2 . 2 1 1 1 1 1 1 1 1 1 1 . 1 1 . . 1 3 3 1 1 1 Hottest 339 | 70 136 136 136 136 136 . 136 . 58 30 33 5 7 90 7 7 30 7 90 . 56 56 . . 56 264 339 52 10 113 Shots Fired 957 | 31 70 6 60 34 53 . 38 . 146 16 54 3 46 9 1 3 5 2 8 . 74 34 . . 48 132 71 3 1 9 Gun 179 | 31 . . . . . . . . 83 . . . . . . . . . . . . . . . . 39 26 . . . Cannon 581 | . 70 2 60 32 49 . 36 . 48 . . . . 1 . . . . 8 . 74 34 . . 22 93 43 . . 9 Launcher 51 | . . 4 . 2 4 . 2 . 3 1 26 . . . . . 4 . . . . . . . . . 2 3 . . Special 146 | . . . . . . . . . 12 15 28 3 46 8 1 3 1 2 . . . . . . 26 . . . 1 . Kinetic 294 | 16 . . . . . . . . 83 . . . . . . . . . . . 74 34 . . 22 39 26 . . . Thermal 466 | 15 70 2 60 32 49 . 36 . 48 . . . . 1 . . . . 8 . . . . . . 93 43 . . 9 Explosive 51 | . . 4 . 2 4 . 2 . 3 1 26 . . . . . 4 . . . . . . . . . 2 3 . . Electromagnetic . | . . . . . . . . . . . . . . . . . . . . . . . . . . . . . . . Robot Hit Streak 24 | 9 5 5 8 11 12 . 7 . 23 8 6 1 24 16 3 2 3 5 . . 7 8 . . 13 7 4 . 1 . Robot Miss Streak 5 | 2 4 1 5 3 4 . 2 . 2 1 2 1 1 1 . 1 . . . . 5 4 . . 3 5 3 2 . . Penetration Max 2 | . . . . . . . . . . . . . . . . . . . . . 1 . . . 1 2 . . . . Secondary Targets . | . . . . . . . . . . . . . . . . . . . . . . . . . . . . . . . Shots Hit Robots 689 | 23 36 1 41 16 33 1 21 . 121 13 43 5 63 17 1 2 7 2 5 3 67 27 1 1 40 64 25 . 1 9 Core Hits 285 | 6 20 11 12 17 17 . 16 . 41 2 23 2 7 4 . . 12 . . 1 18 12 . 1 11 21 17 7 . 7 Critical Kills 21 | . . . . . . . . . . . 1 . . . . . . . . . 8 6 . . 3 2 1 . . . Critical Parts Destroyed 32 | . . . . . 2 . . . 2 . 3 . . . . . . . . . 10 8 . . 7 . . . . . Critical Strikes 72 | 2 . . . . 2 . . . 3 . 4 . 4 1 . . . . . 1 20 17 1 . 14 2 1 . . . Burn 2 | 2 . . . . . . . . . . . . . . . . . . . . . . . . . . . . . . Meltdown 3 | . . . . . . . . . . . . . . . . . . . . . . . . . . 2 1 . . . Destroy 48 | . . . . . . . . . 1 . . . . . . . . . . . 20 16 . . 11 . . . . . Smash 8 | . . . . . 2 . . . 2 . 4 . . . . . . . . . . . . . . . . . . . Sever 5 | . . . . . . . . . . . . . 4 1 . . . . . . . . . . . . . . . . Impale 6 | . . . . . . . . . . . . . . . . . . . . 1 . 1 1 . 3 . . . . . Melee Attacks 273 | . 4 . . . 21 7 3 . 12 9 33 5 32 23 . 9 12 . 6 10 33 5 10 1 13 . . . 4 21 Impact 89 | . 4 . . . 21 7 3 . 12 9 33 . . . . . . . . . . . . . . . . . . . Slashing 81 | . . . . . . . . . . . . 5 32 23 . 9 12 . . . . . . . . . . . . . Piercing 71 | . . . . . . . . . . . . . . . . . . . 1 10 6 5 10 1 13 . . . 4 21 Sneak Attacks 75 | . . . . . . 1 . . . 2 16 3 9 4 . . . . 3 . 24 4 1 . 5 . . . . 3 Combat Hostiles 3 | . . . . . . . . . . . . . 3 . . . . . . . . . . . . . . . . . Follow-up Attacks . | . . . . . . . . . . . . . . . . . . . . . . . . . . . . . . . Damage Inflicted 22257 | 260 809 258 1015 780 1273 100 800 . 2746 259 2226 268 1103 656 . . 722 . . 120 1066 683 103 71 1092 2717 1646 690 . 794 Guns 2151 | 260 . . . . . . . . 1066 . . . . . . . . . . . . . . . . 591 234 . . . Cannons 9247 | . 809 20 941 376 669 . 636 . 1282 . . . . . . . . . . . 613 441 . . 320 2126 1014 . . . Explosions 4179 | . . 236 . 347 447 . 164 . 249 48 1108 . . . . . 492 . . . . . . . . . 398 690 . . Melee 6547 | . . . . . 157 100 . . 149 211 1118 268 1103 656 . . 230 . . 120 453 242 103 71 772 . . . . 794 Ramming 133 | . . 2 74 57 . . . . . . . . . . . . . . . . . . . . . . . . . . Kinetic 3387 | 122 . . . . . . . . 1066 . . . . . . . . . . . 613 441 . . 320 591 234 . . . Thermal 8011 | 138 809 20 941 376 669 . 636 . 1282 . . . . . . . . . . . . . . . . 2126 1014 . . . Explosive 4179 | . . 236 . 347 447 . 164 . 249 48 1108 . . . . . 492 . . . . . . . . . 398 690 . . Electromagnetic . | . . . . . . . . . . . . . . . . . . . . . . . . . . . . . . . Impact 1735 | . . . . . 157 100 . . 149 211 1118 . . . . . . . . . . . . . . . . . . . Slashing 2257 | . . . . . . . . . . . . 268 1103 656 . . 230 . . . . . . . . . . . . . Piercing 2555 | . . . . . . . . . . . . . . . . . . . . 120 453 242 103 71 772 . . . . 794 Highest Corruption 25 | . . . . . 4 . . . 1 . . . . . 10 10 12 . . . . . . . . 15 25 . . 1 Average Corruption 9 | . . . . . 3 . . . 1 . . . . . 10 10 11 . . . . . . . . 8 22 . . 1 Corruption Purged . | . . . . . . . . . . . . . . . . . . . . . . . . . . . . . . . Corruption Blocked . | . . . . . . . . . . . . . . . . . . . . . . . . . . . . . . . Effects 125 | . . . . . 18 . . . 8 . . . . . 1 12 11 . . . . . . . . 24 51 . . . Message Errors 35 | . . . . . 3 . . . 5 . . . . . . 4 2 . . . . . . . . 5 16 . . . Matter Fused 28 | . . . . . 5 . . . 1 . . . . . . 3 5 . . . . . . . . 8 6 . . . Heat Flow Errors 13 | . . . . . 4 . . . 1 . . . . . . 2 1 . . . . . . . . 2 3 . . . Energy Discharges 8 | . . . . . 2 . . . . . . . . . . . . . . . . . . . . 4 2 . . . Parts Rejected 4 | . . . . . . . . . . . . . . . . . 1 . . . . . . . . 1 2 . . . Parts Fused 1 | . . . . . . . . . . . . . . . . . . . . . . . . . . . 1 . . . Data Loss (minor) 15 | . . . . . 2 . . . . . . . . . . 2 2 . . . . . . . . 2 7 . . . Data Loss (major) 6 | . . . . . 2 . . . 1 . . . . . . . . . . . . . . . . . 3 . . . Misfires 2 | . . . . . . . . . . . . . . . . . . . . . . . . . . . 2 . . . Alerts 1 | . . . . . . . . . . . . . . . . . . . . . . . . . . . 1 . . . Misdirections 4 | . . . . . . . . . . . . . . . 1 1 . . . . . . . . . . 2 . . . Weapon Failures 8 | . . . . . . . . . . . . . . . . . . . . . . . . . . 2 6 . . . Overload Shots . | . . . . . . . . . . . . . . . . . . . . . . . . . . . . . . . Overflow Damage 1775 | . . 11 11 . 158 60 34 . 179 104 255 52 32 136 . . 19 . . . 52 2 176 . 157 130 120 87 . . Projectiles 280 | . . . . . 26 . . . 67 . . . . . . . . . . . . 2 . . . 130 55 . . . Explosions 260 | . . 11 . . 15 . 34 . 29 . 4 . . . . . 15 . . . . . . . . . 65 87 . . Melee 1235 | . . . 11 . 117 60 . . 83 104 251 52 32 136 . . 4 . . . 52 . 176 . 157 . . . . . Knockbacks 5 | . . . . 1 . 1 . . . 1 1 . . . . . . . . . 1 . . . . . . . . . Impact 4 | . . . . 1 . 1 . . . 1 1 . . . . . . . . . . . . . . . . . . . Kinetic 1 | . . . . . . . . . . . . . . . . . . . . . 1 . . . . . . . . . Secondary . | . . . . . . . . . . . . . . . . . . . . . . . . . . . . . . . Self-Inflicted Damage 171 | . . . . . 36 . . . 6 . . . . . . . 110 . . . . . . . . . . 19 . . Shots 7 | . . . . . 1 . . . 1 . . . . . . . 4 . . . . . . . . . . 1 . . Rammed 13 | . . 1 2 9 . . . . . . . . . . . . . . . . . . . . . . . 1 . . Targets Rammed 16 | . . 1 4 10 . . . . . . . . . . . . . . . . . . . . . . . 1 . . Kicked . | . . . . . . . . . . . . . . . . . . . . . . . . . . . . . . . Crushed 3 | . . . 2 1 . . . . . . . . . . . . . . . . . . . . . . . . . . Highest Temperature 436 | 54 335 33 207 162 411 . 372 . 109 . 10 . 27 36 . 277 190 . 68 . 13 . . . 9 436 238 . . 180 Average Temperature 95 | 21 135 16 68 58 118 . 190 . 57 . 5 . 6 21 . 149 73 . 23 . 4 . . . 9 154 127 . . 91 Received Heat Transfer 1962 | . 141 . 153 66 51 45 396 . 92 63 223 . 71 21 . . 257 . 9 27 13 . . . 123 72 94 9 27 9 Effects 6 | . 1 . . . 3 . . . . . . . . . . . . . . . . . . . . 2 . . . . Shutdowns 1 | . . . . . . . . . . . . . . . . . . . . . . . . . . 1 . . . . Energy Bleed 2 | . 1 . . . . . . . . . . . . . . . . . . . . . . . . 1 . . . . Interference 2 | . . . . . 2 . . . . . . . . . . . . . . . . . . . . . . . . . Damage (minor) 1 | . . . . . 1 . . . . . . . . . . . . . . . . . . . . . . . . . Siege Activations . | . . . . . . . . . . . . . . . . . . . . . . . . . . . . . . . Martial Activations . | . . . . . . . . . . . . . . . . . . . . . . . . . . . . . . . Shielding Activations . | . . . . . . . . . . . . . . . . . . . . . . . . . . . . . . . Robots Disrupted . | . . . . . . . . . . . . . . . . . . . . . . . . . . . . . . . Combat Hostiles . | . . . . . . . . . . . . . . . . . . . . . . . . . . . . . . . Robots Corrupted 11 | . . . . . 2 1 . . 2 1 5 . . . . . . . . . . . . . . . . . . . Combat Hostiles 9 | . . . . . 2 . . . 2 . 5 . . . . . . . . . . . . . . . . . . . Parts Fried 12 | . . . 1 . 3 1 . . 3 1 3 . . . . . . . . . . . . . . . . . . . Impact Corruptions 24 | . . . 1 . 6 2 . . 3 4 8 . . . . . . . . . . . . . . . . . . . Robots Melted 3 | . . . . . . . . . . . . . . . . . . . . . . . . . . 2 1 . . . Combat Hostiles 3 | . . . . . . . . . . . . . . . . . . . . . . . . . . 2 1 . . . Parts Melted 24 | . 1 . 1 . 1 . 1 . 10 . . . . . . . . . . . 1 . . . . 8 1 . . . Heat Transferred 11019 | 555 1443 37 1665 666 1073 . 1090 . 1900 . . . . . . . . . . . . . . . . 1739 851 . . . Parts Sabotaged 10 | . . . . . . . . . . . . . . . . . . . . . . . . . 10 . . . . . Parts Stolen . | . . . . . . . . . . . . . . . . . . . . . . . . . . . . . . . Parts Stripped . | . . . . . . . . . . . . . . . . . . . . . . . . . . . . . . . Power Chain Reactions . | . . . . . . . . . . . . . . . . . . . . . . . . . . . . . . . Alert | -11 -10 -10 -9 -9 -9 -8 -8 -8 -8 -7 -7 -7 -7 -6 -6 -6 -6 -5 -5 -4 -4 -4 -4 -4 -4 -3 -3 -2 -2 -1 ------- Run | Yrd Mat Min Mat Sto Gar Mat Gar Mat Gar Fac Gar Fac Gar Fac Was Fac Gar Fac Gar Fac Ext Cet Arc Hub Gar Res Qua Res Tes Acc Maximum Alert Level 4 | . 1 . . 1 3 2 2 1 3 2 3 2 4 3 1 . 1 . 3 2 1 . . . . . 1 1 1 . Low Security (%) 56 | 100 92 100 100 90 14 . . 23 16 . 5 . . . 16 100 11 100 14 . 94 100 100 100 100 100 99 62 49 100 Level 1 12 | . 7 . . 9 19 28 45 76 23 73 21 . . . 83 . 88 . 16 25 5 . . . . . . 37 50 . Level 2 19 | . . . . . 36 71 54 . 35 26 43 100 29 92 . . . . 27 75 . . . . . . . . . . Level 3 11 | . . . . . 29 . . . 24 . 29 . 56 7 . . . . 41 . . . . . . . . . . . Level 4 . | . . . . . . . . . . . . . 13 . . . . . . . . . . . . . . . . . Level 5 . | . . . . . . . . . . . . . . . . . . . . . . . . . . . . . . . High Security . | . . . . . . . . . . . . . . . . . . . . . . . . . . . . . . . Max Security . | . . . . . . . . . . . . . . . . . . . . . . . . . . . . . . . Peak Influence 1167 | 5 221 139 138 285 916 446 474 230 770 432 1070 613 1167 747 208 175 352 188 847 454 226 131 52 29 144 85 204 266 249 188 Initial 612 | . 3 27 . 21 96 446 251 230 117 403 195 561 401 612 208 138 109 184 57 444 189 28 36 11 20 79 18 90 138 144 Average 274 | 1 98 15 47 61 496 416 389 208 461 370 563 547 865 646 205 121 282 133 541 417 69 85 41 17 87 32 30 161 187 144 Influence Increases 10869 | 25 489 204 392 600 880 11 273 . 753 116 1075 162 1076 452 . 149 353 112 950 112 503 262 18 18 362 415 437 206 193 271 Destroy 0b10 Robot/C 4910 | . 260 160 260 300 440 . 160 . 440 20 540 40 480 120 . . 160 . 420 30 255 150 . . 150 180 150 75 90 30 Destroy 0b10 Robot/NC 295 | 25 25 . 30 40 . 5 . . 25 15 . 15 . 35 . . . . . . 36 8 4 4 . . 8 4 . 16 Destroy Leader 620 | . 56 20 74 98 10 . 30 . 40 2 20 10 40 6 . . 20 . 32 16 44 8 . 2 8 48 10 8 8 10 Allied During Kill 654 | . . 5 20 110 11 . . . 10 1 15 15 94 11 . . . . 202 6 78 56 . . 6 . . . 14 . Successful Hack 432 | . 39 . 8 15 35 . . . 14 5 . 15 6 29 . 82 . 46 14 8 22 . . . . 5 49 14 . 26 Disable Machine 495 | . 60 . . 15 . . . . 45 15 15 45 15 90 . 15 . . . . . 12 12 . . 24 48 . 36 48 Anti-Garrison Action 1140 | . . . . . 300 . 50 . 100 . 200 . 300 . . . . . 152 . . . . . 38 . . . . . Destroy Structure 802 | . 4 19 . 22 84 6 18 . 19 13 75 7 21 41 . 7 23 30 46 28 8 28 2 . 4 86 64 105 9 33 Partial Spotted 378 | . . . . . . . . . . . 75 15 75 . . 45 . 36 24 . 24 . . 12 12 12 48 . . . Lose Combat Pursuer 1143 | . 45 . . . . . 15 . 60 45 135 . 45 120 . . 150 . 60 24 36 . . . 144 60 60 . 36 108 Influence Decreases 10774 | 20 423 275 340 504 112 540 186 294 163 607 284 659 482 1023 398 190 158 382 185 573 838 221 76 23 249 525 307 122 198 417 Entered New Map 4483 | . 2 44 . 31 52 470 136 244 63 367 84 509 172 555 388 60 48 168 25 403 197 23 56 23 9 63 14 72 108 97 Time Decay 3894 | 20 411 221 270 313 . 70 . 50 . 180 . 150 . 318 10 130 . 214 . 80 428 120 20 . . 402 217 20 60 190 Lost Part 751 | . 10 10 30 . . . 50 . 20 . 40 . 30 10 . . 70 . 20 30 55 . . . 100 60 66 30 10 110 Lost Ally 1638 | . . . 40 160 60 . . . 80 60 160 . 280 140 . . 40 . 140 60 150 78 . . 140 . 10 . 20 20 Purge Threat 8 | . . . . . . . . . . . . . . . . . . . . . 8 . . . . . . . . . Squads Dispatched 44 | . 1 . . 1 . 1 . . . 4 . 1 . 5 . 1 . 2 . 5 4 1 . . . 9 6 . . 3 Investigation 8 | . . . . 1 . . . . . . . . . 1 . . . 1 . 1 2 1 . . . 1 . . . . Extermination 12 | . . . . . . . . . . . . . . 2 . 1 . 1 . . . . . . . 3 2 . . 3 Reinforcement 18 | . 1 . . . . 1 . . . 1 . 1 . 2 . . . . . 2 2 . . . . 4 4 . . . Assault . | . . . . . . . . . . . . . . . . . . . . . . . . . . . . . . . Garrison 6 | . . . . . . . . . . 3 . . . . . . . . . 2 . . . . . 1 . . . . Intercept . | . . . . . . . . . . . . . . . . . . . . . . . . . . . . . . . Searches Triggered . | . . . . . . . . . . . . . . . . . . . . . . . . . . . . . . . Construction Impeded 4 | . . . . . . . . . . . . . . . . . . . . 1 1 . . . . 1 1 . . . Haulers Reinforced 2 | . . . . . . . . . . 1 . . . 1 . . . . . . . . . . . . . . . . Active Scanning Responses . | . . . . . . . . . . . . . . . . . . . . . . . . . . . . . . . Cargo Convoy Interrupts 1 | . . . . . . . . . . . . . . . . . . . . . . . . . . 1 . . . . Stealth | -11 -10 -10 -9 -9 -9 -8 -8 -8 -8 -7 -7 -7 -7 -6 -6 -6 -6 -5 -5 -4 -4 -4 -4 -4 -4 -3 -3 -2 -2 -1 --------- Run | Yrd Mat Min Mat Sto Gar Mat Gar Mat Gar Fac Gar Fac Gar Fac Was Fac Gar Fac Gar Fac Ext Cet Arc Hub Gar Res Qua Res Tes Acc Distress Signals 17 | . 2 . . 3 . . . . . . . . . . . . . . . . 2 3 . 1 . 3 2 . . 1 Communications Jammed . | . . . . . . . . . . . . . . . . . . . . . . . . . . . . . . . Distress Signals . | . . . . . . . . . . . . . . . . . . . . . . . . . . . . . . . Times Spotted 457 | . 22 7 15 15 23 4 10 . 23 13 38 . 35 15 4 2 20 3 16 5 26 13 3 3 39 22 30 11 15 25 Peak Tracking Total 13 | . 8 4 6 5 5 2 3 . 6 4 9 . 6 7 3 1 8 2 7 3 4 5 3 3 13 5 7 6 8 8 Tactical Retreats 40 | . 2 . . . . . 1 . 2 3 5 . 3 2 . . 4 . 2 1 3 . . . 3 3 1 . 2 3 Traps | -11 -10 -10 -9 -9 -9 -8 -8 -8 -8 -7 -7 -7 -7 -6 -6 -6 -6 -5 -5 -4 -4 -4 -4 -4 -4 -3 -3 -2 -2 -1 ------- Run | Yrd Mat Min Mat Sto Gar Mat Gar Mat Gar Fac Gar Fac Gar Fac Was Fac Gar Fac Gar Fac Ext Cet Arc Hub Gar Res Qua Res Tes Acc Traps Triggered 55 | . . . . 4 8 . 1 . 9 . 3 . 13 4 . . 1 1 . . 4 . . . 4 2 . . . 1 Indirectly . | . . . . . . . . . . . . . . . . . . . . . . . . . . . . . . . Trap Hack Attempts 6 | . . . . . . . . . . . . . . . . . . . 6 . . . . . . . . . . . Triggered . | . . . . . . . . . . . . . . . . . . . . . . . . . . . . . . . Disarmed 1 | . . . . . . . . . . . . . . . . . . . 1 . . . . . . . . . . . Reprogrammed 1 | . . . . . . . . . . . . . . . . . . . 1 . . . . . . . . . . . Reused . | . . . . . . . . . . . . . . . . . . . . . . . . . . . . . . . Traps Extracted . | . . . . . . . . . . . . . . . . . . . . . . . . . . . . . . . Installed . | . . . . . . . . . . . . . . . . . . . . . . . . . . . . . . . Triggered . | . . . . . . . . . . . . . . . . . . . . . . . . . . . . . . . Machines | -11 -10 -10 -9 -9 -9 -8 -8 -8 -8 -7 -7 -7 -7 -6 -6 -6 -6 -5 -5 -4 -4 -4 -4 -4 -4 -3 -3 -2 -2 -1 ---------- Run | Yrd Mat Min Mat Sto Gar Mat Gar Mat Gar Fac Gar Fac Gar Fac Was Fac Gar Fac Gar Fac Ext Cet Arc Hub Gar Res Qua Res Tes Acc Machines Disabled 67 | . 4 1 . 1 4 . 2 . 5 1 7 3 8 6 . 1 . . 8 . . 1 1 . 1 2 4 . 3 4 Max in Single Turn 1 | . 1 . . 1 1 . 1 . 1 1 1 . 1 1 . 1 . . 1 . . . 1 . 1 1 1 . 1 1 Garrison Access 5 | . . . . . . . . . . . . 1 . . . 1 . . . . . . . . . . . 1 . 2 Garrison Relay 17 | . . . . . 2 . 1 . . . 3 . 6 . . . . . 4 . . . . . 1 . . . . . Phase Generator 1 | . . . . . . . . . . . . . . . . . . . 1 . . . . . . . . . . . Machines Repaired . | . . . . . . . . . . . . . . . . . . . . . . . . . . . . . . . Machines Dismantled 1 | . . . . . . . . . . . 1 . . . . . . . . . . . . . . . . . . . Machines Sabotaged . | . . . . . . . . . . . . . . . . . . . . . . . . . . . . . . . Overloaded Fab Kills . | . . . . . . . . . . . . . . . . . . . . . . . . . . . . . . . Hacking | -11 -10 -10 -9 -9 -9 -8 -8 -8 -8 -7 -7 -7 -7 -6 -6 -6 -6 -5 -5 -4 -4 -4 -4 -4 -4 -3 -3 -2 -2 -1 --------- Run | Yrd Mat Min Mat Sto Gar Mat Gar Mat Gar Fac Gar Fac Gar Fac Was Fac Gar Fac Gar Fac Ext Cet Arc Hub Gar Res Qua Res Tes Acc Machines Accessed 111 | . 7 . 3 7 4 1 2 1 3 3 5 4 2 7 . 9 1 14 3 2 11 1 . 1 . 4 6 2 . 8 Terminals 80 | . 7 . 2 6 4 . 2 . 3 1 5 2 2 4 . 6 1 8 3 . 9 1 . . . 3 5 1 . 5 Fabricators 7 | . . . . . . . . . . 1 . . . 2 . . . 1 . 1 . . . . . 1 . . . 1 Repair Stations 5 | . . . . . . . . . . . . . . 1 . 1 . 2 . 1 . . . . . . . . . . Recycling Units 4 | . . . . . . . . . . . . . . . . . . 2 . . 2 . . . . . . . . . Scanalyzers 2 | . . . 1 . . . . . . . . . . . . . . . . . . . . . . . 1 . . . Garrison Access 13 | . . . . 1 . 1 . 1 . 1 . 2 . . . 2 . 1 . . . . . 1 . . . 1 . 2 Total Hacks 241 | . 26 . 6 14 7 1 3 1 5 4 9 7 3 16 . 19 2 41 8 6 26 2 . 1 . 8 10 2 . 14 Successful 126 | . 17 . 2 9 4 1 1 1 1 3 . 5 1 7 . 11 1 26 3 4 12 . . 1 . 1 5 2 . 8 Failed 113 | . 9 . 3 5 3 . 2 . 4 1 9 2 2 9 . 8 1 14 5 2 14 2 . . . 7 5 . . 6 Catastrophic 21 | . 1 . . . . . 1 . 1 1 2 . . 1 . 2 . 2 . . 2 1 . . . 2 3 . . 2 Database Lockouts 2 | . . . 1 . . . . . . . . . . . . . . 1 . . . . . . . . . . . . Manual 90 | . 15 . 3 9 . . . . . 1 . 3 . 8 . 8 . 22 1 . 7 1 . . . . 5 . . 7 Terminals 186 | . 26 . 4 13 7 . 3 . 5 2 9 4 3 9 . 15 2 31 8 . 20 2 . . . 5 7 1 . 10 Fabricators 15 | . . . . . . . . . . 1 . . . 3 . . . 2 . 4 . . . . . 3 . . . 2 Repair Stations 13 | . . . . . . . . . . . . . . 4 . 2 . 5 . 2 . . . . . . . . . . Recycling Units 8 | . . . . . . . . . . . . . . . . . . 2 . . 6 . . . . . . . . . Scanalyzers 5 | . . . 2 . . . . . . . . . . . . . . . . . . . . . . . 3 . . . Garrison Access 14 | . . . . 1 . 1 . 1 . 1 . 3 . . . 2 . 1 . . . . . 1 . . . 1 . 2 Terminal Hacks 66 | . 9 . 1 2 4 . 1 . 1 2 . . 1 2 . 7 1 14 3 . 10 . . . . 1 2 1 . 4 Part Schematic 4 | . . . . . . . . . . . . . . 1 . 1 . 2 . . . . . . . . . . . . Robot Analysis 3 | . 2 . . . . . . . . . . . . . . . . 1 . . . . . . . . . . . . Prototype ID Bank 6 | . . . . . . . . . . 1 . . . . . 2 . 1 . . 1 . . . . . . . . 1 Open Door 9 | . . . . 1 1 . . . . . . . 1 . . . 1 . 1 . 3 . . . . 1 . . . . Level Access Points 1 | . . . . . . . . . . . . . . . . . . . . . . . . . . . . . . 1 Branch Access Points 5 | . . . 1 . . . . . . . . . . . . 1 . 1 . . . . . . . . . 1 . 1 Emergency Access Points 1 | . . . . . 1 . . . . . . . . . . . . . . . . . . . . . . . . . Machine Index 2 | . . . . . . . . . . . . . . . . 1 . 1 . . . . . . . . . . . . Fabricator Index 1 | . . . . . . . . . . . . . . . . . . 1 . . . . . . . . . . . . Unreport Threat 1 | . . . . . . . . . . . . . . . . . . . . . 1 . . . . . . . . . Locate Traps 4 | . 2 . . . . . . . . . . . . . . . . 1 . . 1 . . . . . . . . . Dispatch Records 1 | . 1 . . . . . . . . . . . . . . . . . . . . . . . . . . . . . Security Status 1 | . . . . . . . . . . . . . . . . 1 . . . . . . . . . . . . . . Patrol Status 1 | . 1 . . . . . . . . . . . . . . . . . . . . . . . . . . . . . Investigation Status 1 | . 1 . . . . . . . . . . . . . . . . . . . . . . . . . . . . . Recall Investigation 3 | . 1 . . . . . . . . . . . . . . . . 1 . . 1 . . . . . . . . . Recall Extermination 2 | . . . . . . . . . . . . . . . . . . 1 . . . . . . . . . . . 1 Recall Reinforcements 1 | . . . . . . . . . . . . . . . . . . . . . 1 . . . . . . . . . Hauler Manifests 8 | . 1 . . . . . . . . 1 . . . 1 . 1 . 1 . . 2 . . . . . 1 . . . Registered Prototypes 1 | . . . . . . . . . . . . . . . . . . 1 . . . . . . . . . . . . Zone Layout 4 | . . . . 1 . . . . . . . . . . . . . 2 . . . . . . . . 1 . . . Garrison Registry 3 | . . . . . 1 . 1 . . . . . . . . . . . 1 . . . . . . . . . . . Patrol Navigation 3 | . . . . . 1 . . . 1 . . . . . . . . . 1 . . . . . . . . . . . Fabricator Hacks 7 | . . . . . . . . . . . . . . 2 . . . 2 . 2 . . . . . . . . . 1 Load Schematic 3 | . . . . . . . . . . . . . . 1 . . . 1 . 1 . . . . . . . . . . Build 4 | . . . . . . . . . . . . . . 1 . . . 1 . 1 . . . . . . . . . 1 Repair Station Hacks 9 | . . . . . . . . . . . . . . 2 . 1 . 4 . 2 . . . . . . . . . . Scan Component 5 | . . . . . . . . . . . . . . 1 . 1 . 2 . 1 . . . . . . . . . . Repair 4 | . . . . . . . . . . . . . . 1 . . . 2 . 1 . . . . . . . . . . Recycling Unit Hacks 3 | . . . . . . . . . . . . . . . . . . 1 . . 2 . . . . . . . . . Retrieve Components 3 | . . . . . . . . . . . . . . . . . . 1 . . 2 . . . . . . . . . Scanalyzer 3 | . . . 1 . . . . . . . . . . . . . . . . . . . . . . . 2 . . . Retrieve Study 3 | . . . 1 . . . . . . . . . . . . . . . . . . . . . . . 2 . . . Garrison Access Hacks 14 | . . . . 1 . 1 . 1 . 1 . 3 . . . 2 . 1 . . . . . 1 . . . 1 . 2 Unlock Access 8 | . . . . 1 . 1 . 1 . 1 . 1 . . . 1 . 1 . . . . . 1 . . . . . . Seal Access 5 | . . . . . . . . . . . . 1 . . . 1 . . . . . . . . . . . 1 . 2 Coupler Status 1 | . . . . . . . . . . . . 1 . . . . . . . . . . . . . . . . . . Unauthorized Hacks 24 | . 8 . . 6 . . . . . . . 2 . 1 . 1 . 4 . . . . . . . . 1 . . 1 Terminals 24 | . 8 . . 6 . . . . . . . 2 . 1 . 1 . 4 . . . . . . . . 1 . . 1 Assimilate 5 | . . . . . . . . . . . . . . 1 . . . 2 . . . . . . . . 1 . . 1 Botnet 9 | . 3 . . 1 . . . . . . . 2 . . . 1 . 2 . . . . . . . . . . . . Skim 10 | . 5 . . 5 . . . . . . . . . . . . . . . . . . . . . . . . . . Fabricators . | . . . . . . . . . . . . . . . . . . . . . . . . . . . . . . . Repair Stations . | . . . . . . . . . . . . . . . . . . . . . . . . . . . . . . . Recycling Units . | . . . . . . . . . . . . . . . . . . . . . . . . . . . . . . . Scanalyzers . | . . . . . . . . . . . . . . . . . . . . . . . . . . . . . . . Garrison Access . | . . . . . . . . . . . . . . . . . . . . . . . . . . . . . . . Data Cores Recovered 3 | . . . . 1 . . . . . 1 . . . . . . . . . . . . . . . . . . . 1 Used 1 | . . . . . . . . . . . . . . . . . . . . . . . . . . . . . . 1 Hacking Detections 82 | . 5 . 3 4 3 . 1 . 3 3 5 3 1 7 . 7 . 12 2 1 7 1 . . . 3 5 1 . 5 Full Trace Events 6 | . . . . . . . . . . . 1 . . 1 . . . 1 . 1 . 1 . . . 1 . . . . Feedback Events . | . . . . . . . . . . . . . . . . . . . . . . . . . . . . . . . Feedback Blocked . | . . . . . . . . . . . . . . . . . . . . . . . . . . . . . . . Robot Schematics Acquired . | . . . . . . . . . . . . . . . . . . . . . . . . . . . . . . . Robots Built 2 | . . . . . . . . . . . . . . . . . . . . . . . . . . . . . . 2 Authchips . | . . . . . . . . . . . . . . . . . . . . . . . . . . . . . . . Time 27 | . . . . . . . . . . . . . . . . . . . . . . . . . . . . . . 27 Total Robot Build Rating 2 | . . . . . . . . . . . . . . . . . . . . . . . . . . . . . . 2 Part Schematics Acquired 4 | . . . . . . . . . . . . . . 1 . 1 . 2 . . . . . . . . . . . . Parts Built 3 | . . . . . . . . . . . . . . 1 . . . 1 . 1 . . . . . . . . . . Authchips . | . . . . . . . . . . . . . . . . . . . . . . . . . . . . . . . Time 229 | . . . . . . . . . . . . . . 95 . . . 67 . 67 . . . . . . . . . . Total Part Build Rating 13 | . . . . . . . . . . . . . . 5 . . . 4 . 4 . . . . . . . . . . Part Studies Acquired 3 | . . . 1 . . . . . . . . . . . . . . . . . . . . . . . 2 . . . Parts Repaired 4 | . . . . . . . . . . . . . . 1 . . . 2 . 1 . . . . . . . . . . Time 190 | . . . . . . . . . . . . . . 56 . . . 90 . 44 . . . . . . . . . . Parts Recycled . | . . . . . . . . . . . . . . . . . . . . . . . . . . . . . . . Recycled Matter . | . . . . . . . . . . . . . . . . . . . . . . . . . . . . . . . Retrieved Matter . | . . . . . . . . . . . . . . . . . . . . . . . . . . . . . . . Retrieved Components 14 | . . . . . . . . . . . . . . . . . . 3 . . 11 . . . . . . . . . Parts Scanalyzed . | . . . . . . . . . . . . . . . . . . . . . . . . . . . . . . . Part Schematics Acquired . | . . . . . . . . . . . . . . . . . . . . . . . . . . . . . . . Parts Damaged . | . . . . . . . . . . . . . . . . . . . . . . . . . . . . . . . Bothacking | -11 -10 -10 -9 -9 -9 -8 -8 -8 -8 -7 -7 -7 -7 -6 -6 -6 -6 -5 -5 -4 -4 -4 -4 -4 -4 -3 -3 -2 -2 -1 ------------ Run | Yrd Mat Min Mat Sto Gar Mat Gar Mat Gar Fac Gar Fac Gar Fac Was Fac Gar Fac Gar Fac Ext Cet Arc Hub Gar Res Qua Res Tes Acc Used RIF Installer 8 | . . . . . 2 . 1 . 1 . 1 . 1 . . . 1 . 1 . . . . . . . . . . . Coupler Efficiency 1 | . . . . . . . . . . . 1 . . . . . . . . . . . . . . . . . . . Hotswap 1 | . . . . . . . 1 . . . . . . . . . . . . . . . . . . . . . . . Command Fork 1 | . . . . . . . . . . . . . 1 . . . . . . . . . . . . . . . . . Threat Obfuscator 1 | . . . . . . . . . . . . . . . . . 1 . . . . . . . . . . . . . Patrol Navigation 1 | . . . . . . . . . 1 . . . . . . . . . . . . . . . . . . . . . Structural Interface 1 | . . . . . 1 . . . . . . . . . . . . . . . . . . . . . . . . . Program Shield 1 | . . . . . . . . . . . . . . . . . . . 1 . . . . . . . . . . . Robots Hacked 60 | . . . . . . . . . . 6 13 1 15 5 1 1 . 1 3 . 6 . . . 8 . . . . . Non-combat 4 | . . . . . . . . . . . . 1 . 2 . . . . . . 1 . . . . . . . . . Combat 56 | . . . . . . . . . . 6 13 . 15 3 1 1 . 1 3 . 5 . . . 8 . . . . . Robot Hacks Applied 66 | . . . . . . . . . . 6 13 2 17 6 1 1 . 1 3 . 6 . . . 10 . . . . . parse_system 7 | . . . . . . . . . . . . 1 3 1 . . . . 1 . 1 . . . . . . . . . find_chute 1 | . . . . . . . . . . . . . . 1 . . . . . . . . . . . . . . . . drop_inventory 2 | . . . . . . . . . . . . 1 . 1 . . . . . . . . . . . . . . . . ignore_targets 1 | . . . . . . . . . . . . . . . 1 . . . . . . . . . . . . . . . spike_heat 2 | . . . . . . . . . . . . . 1 1 . . . . . . . . . . . . . . . . overload_power 1 | . . . . . . . . . . 1 . . . . . . . . . . . . . . . . . . . . amplify_resonance 5 | . . . . . . . . . . . 1 . 2 . . . . . . . . . . . 2 . . . . . wipe_record 1 | . . . . . . . . . . 1 . . . . . . . . . . . . . . . . . . . . reboot_system 5 | . . . . . . . . . . . 2 . 1 . . . . . . . 1 . . . 1 . . . . . overwrite_iff 20 | . . . . . . . . . . . 8 . 4 1 . . . . . . . . . . 7 . . . . . formatsys_high 21 | . . . . . . . . . . 4 2 . 6 1 . 1 . 1 2 . 4 . . . . . . . . . Relay Couplers Released 83 | . . . . . 9 . 3 . . . 15 3 28 . . 2 . . 18 . . . . . 5 . . . . . Machine Destruction 80 | . . . . . 9 . 3 . . . 15 3 25 . . 2 . . 18 . . . . . 5 . . . . . Programmers 3 | . . . . . . . . . . . . . 3 . . . . . . . . . . . . . . . . . Attached 32 | . . . . . . . . . . 3 4 3 7 1 . 1 . 1 7 . 2 . . . 3 . . . . . Fabnet Peak Effective % . | . . . . . . . . . . . . . . . . . . . . . . . . . . . . . . . Robots Rewired 36 | . . . . . . . . . 4 . 3 . 8 . . . . . 4 . 11 . . . 3 . 1 . 2 . Allies Hacked 3 | . . . . . 1 . . . . . . . 2 . . . . . . . . . . . . . . . . . Hacks Repelled . | . . . . . . . . . . . . . . . . . . . . . . . . . . . . . . . Allies | -11 -10 -10 -9 -9 -9 -8 -8 -8 -8 -7 -7 -7 -7 -6 -6 -6 -6 -5 -5 -4 -4 -4 -4 -4 -4 -3 -3 -2 -2 -1 -------- Run | Yrd Mat Min Mat Sto Gar Mat Gar Mat Gar Fac Gar Fac Gar Fac Was Fac Gar Fac Gar Fac Ext Cet Arc Hub Gar Res Qua Res Tes Acc Total Allies 112 | . . 3 . 10 2 . . . 4 4 15 . 20 2 . 1 2 3 8 . 19 . . . 12 . 2 . 2 3 Largest Group 13 | . . 3 2 10 2 . . . 4 2 3 3 6 7 . 1 2 3 5 3 13 5 . . 5 . 1 . 1 2 Highest-Rated Group 526 | . . 40 24 88 62 . . . 20 32 129 129 235 264 . 32 75 120 358 245 526 286 . . 248 . 26 . 161 45 Highest-Rated Ally 161 | . . 16 16 16 31 . . . 5 32 43 43 81 81 . 32 46 85 119 85 159 143 . . 56 . 26 . 161 45 Total Orders 4 | . . . . . . . . . . . . . . . . . . . 4 . . . . . . . . . . . STAY 2 | . . . . . . . . . . . . . . . . . . . 2 . . . . . . . . . . . FOLLOW 2 | . . . . . . . . . . . . . . . . . . . 2 . . . . . . . . . . . Ally Attacks 591 | . . 9 28 37 22 . . . 47 4 66 4 101 38 . . 4 1 68 17 64 31 . . 36 . . . 14 . Total Damage 15594 | . . 101 325 254 244 . . . 296 165 1121 172 2982 1421 . . 162 55 2615 473 1778 1206 . . 1019 . . . 1205 . Kills 116 | . . 3 5 6 4 . . . 2 1 10 2 20 8 . . . . 28 1 13 6 . . 1 . . . 6 . Allies Corrupted 3 | . . . . . . . . . . . . . 1 1 . . . . . . . . . . . . 1 . . . Allies Melted 5 | . . . . . . . . . . . . . 1 . . . . . 2 . 1 . . . . . . . 1 . Intel | -11 -10 -10 -9 -9 -9 -8 -8 -8 -8 -7 -7 -7 -7 -6 -6 -6 -6 -5 -5 -4 -4 -4 -4 -4 -4 -3 -3 -2 -2 -1 ------- Run | Yrd Mat Min Mat Sto Gar Mat Gar Mat Gar Fac Gar Fac Gar Fac Was Fac Gar Fac Gar Fac Ext Cet Arc Hub Gar Res Qua Res Tes Acc Active Infowar (turns) 5444 | 50 291 . . . . . . . . 162 48 . . 700 24 268 34 448 561 176 1480 241 53 17 513 20 . . . 358 Optics 2661 | . . . . . . . . . . . . . . . . . . . 181 176 1480 241 53 17 513 . . . . . Sensors 3430 | . . . . . . . . . . . . . . 700 24 268 34 448 380 165 1033 . . . . 20 . . . 358 Seismic 551 | 50 291 . . . . . . . . 162 48 . . . . . . . . . . . . . . . . . . . Robot Analysis Total 3 | . 2 . . . . . . . . . . . . . . . . 1 . . . . . . . . . . . . Derelict Logs Recovered 1 | . . 1 . . . . . . . . . . . . . . . . . . . . . . . . . . . . Drone Launches . | . . . . . . . . . . . . . . . . . . . . . . . . . . . . . . . Drone Recoveries . | . . . . . . . . . . . . . . . . . . . . . . . . . . . . . . . Exploration | -11 -10 -10 -9 -9 -9 -8 -8 -8 -8 -7 -7 -7 -7 -6 -6 -6 -6 -5 -5 -4 -4 -4 -4 -4 -4 -3 -3 -2 -2 -1 ------------- Run | Yrd Mat Min Mat Sto Gar Mat Gar Mat Gar Fac Gar Fac Gar Fac Was Fac Gar Fac Gar Fac Ext Cet Arc Hub Gar Res Qua Res Tes Acc Turns Passed 19205 | 217 1207 1529 935 1048 1896 146 458 105 1584 367 861 301 913 706 24 268 314 457 853 176 1480 241 53 17 549 1073 858 54 133 382 Spaces Moved 17380 | 98 504 628 367 344 732 58 162 42 544 369 762 601 1425 1450 71 674 324 1091 1076 238 1811 187 34 43 790 1003 648 111 288 905 Core 12 | 3 . . . . . . . . . . . . . . . . 6 . . . . . . . 3 . . . . . Treads 3476 | 95 504 628 367 344 732 58 162 42 544 . . . . . . . . . . . . . . . . . . . . . Legs 648 | . . . . . . . . . . . . . . . . . . . . . . . . . . 360 288 . . . Wheels . | . . . . . . . . . . . . . . . . . . . . . . . . . . . . . . . Hover 1214 | . . . . . . . . . . 369 762 56 . . . . . . . . . . . . . 27 . . . . Flight 12030 | . . . . . . . . . . . . 545 1425 1450 71 674 318 1091 1076 238 1811 187 34 43 787 616 360 111 288 905 Fastest Speed 25 | 50 160 240 160 200 200 210 222 242 213 62 62 26 26 26 32 29 28 25 28 34 29 32 32 32 30 34 34 39 29 26 Average Speed 76 | 156 203 240 209 235 212 212 234 242 228 70 62 30 26 29 32 30 33 27 29 46 32 52 32 32 33 75 102 39 33 26 Slowest Speed 320 | 160 240 240 320 240 240 222 242 242 242 144 129 227 26 32 32 32 50 28 34 165 111 107 32 32 115 190 260 42 39 30 Overloaded Moves 5 | . . . . . . . . . . . . . . . . . . 5 . . . . . . . . . . . . Propulsion Burnouts . | . . . . . . . . . . . . . . . . . . . . . . . . . . . . . . . Robots Hopped 79 | . . . . . . . . . . . . . 16 8 . 1 4 5 14 3 10 . . . 3 9 2 . . 4 Potential Cave-ins . | . . . . . . . . . . . . . . . . . . . . . . . . . . . . . . . Cave-ins Triggered . | . . . . . . . . . . . . . . . . . . . . . . . . . . . . . . . Exploration Rate (%) 46 | 6 86 95 38 60 80 12 37 4 89 12 93 18 91 31 58 18 47 25 91 5 90 71 69 7 48 22 68 5 50 25 Regions Visited 30 Branch Regions 8 Pre-discovered Areas 4 | . 2 2 . . . . . . . . . . . . . . . . . . . . . . . . . . . . Known Exits Taken 18 | . . 1 1 1 . 1 . 1 . 1 . 1 . . . 1 . 1 . 1 1 1 1 1 . 1 1 1 1 . Unknown Exits Taken 2 | 1 1 . . . . . . . . . . . . . . . . . . . . . . . . . . . . . Scrap Searched 1 | . . 1 . . . . . . . . . . . . . . . . . . . . . . . . . . . . Spaces Dug 129 | . 4 . . 11 13 6 25 . 3 4 . 1 . 11 . 7 4 . 1 6 . . 1 . . 13 8 . 2 9 Terrain Destroyed 409 | . 4 30 . 23 35 6 25 . 4 11 91 1 . 11 . 7 17 . 1 6 . . 1 . . 55 33 35 2 11 Melee 52 | . 4 . . . 4 6 . . . 4 . 1 . 10 . 7 . . . 6 . . 1 . . . . . 2 7 Projectile 80 | . . . . . . . . . . . . . . 1 . . . . 1 . . . . . . 55 19 . . 4 AOE 277 | . . 30 . 23 31 . 25 . 4 7 91 . . . . . 17 . . . . . . . . . 14 35 . . Terrain Rammed . | . . . . . . . . . . . . . . . . . . . . . . . . . . . . . . . Walls Destroyed . | . . . . . . . . . . . . . . . . . . . . . . . . . . . . . . . Machines Disabled . | . . . . . . . . . . . . . . . . . . . . . . . . . . . . . . . Actions | -11 -10 -10 -9 -9 -9 -8 -8 -8 -8 -7 -7 -7 -7 -6 -6 -6 -6 -5 -5 -4 -4 -4 -4 -4 -4 -3 -3 -2 -2 -1 --------- Run | Yrd Mat Min Mat Sto Gar Mat Gar Mat Gar Fac Gar Fac Gar Fac Was Fac Gar Fac Gar Fac Ext Cet Arc Hub Gar Res Qua Res Tes Acc Total 21949 | 127 610 644 472 541 984 69 196 46 722 463 1039 716 1888 1688 71 699 497 1235 1583 278 2614 282 53 44 1002 1195 776 118 313 984 Wait 2687 | . 17 1 34 137 145 2 . . 15 20 133 67 245 174 . . 137 136 436 30 645 34 8 . 85 91 50 . 14 31 Move 17208 | 97 503 627 366 343 731 58 161 41 543 369 761 600 1397 1434 70 671 315 1080 1053 231 1791 186 33 43 783 984 643 111 287 896 Hop 67 | . . . . . . . . . . . . . 11 8 . 1 4 5 8 3 9 . . . 3 9 2 . . 4 Pick Up 104 | 7 18 2 12 9 6 . 2 1 8 8 5 2 3 . . . 1 1 4 . 1 1 . . . 9 2 . 1 1 Fast Attach 162 | 7 2 . 2 1 2 . 1 . 4 4 5 7 6 10 . 2 9 5 9 3 14 5 . . 7 22 18 1 3 13 Attach 83 | . 1 1 5 . 1 1 5 1 1 10 4 4 2 . . . 2 3 9 1 2 3 1 . 10 8 3 1 1 3 Detach 70 | . . . 2 . 3 . . 1 1 4 3 6 2 2 . 1 1 3 12 . 3 4 . . 10 4 2 2 1 3 Swap 121 | . 11 4 6 8 21 1 4 2 17 5 2 4 7 4 . 3 1 . 3 . 5 5 1 . 3 1 3 . . . Drop 148 | . 9 3 10 9 9 . . . 9 18 2 18 5 8 . 1 3 . 5 . 7 5 . . . 9 15 . . 3 Fire 672 | 16 45 5 31 18 29 . 20 . 97 16 54 3 46 9 1 3 5 2 8 . 74 34 . . 48 58 37 3 1 9 Melee 273 | . 4 . . . 21 7 3 . 12 9 33 5 32 23 . 9 12 . 6 10 33 5 10 1 13 . . . 4 21 Ram . | . . . . . . . . . . . . . . . . . . . . . . . . . . . . . . . Kick . | . . . . . . . . . . . . . . . . . . . . . . . . . . . . . . . Crush 15 | . . 1 4 10 . . . . . . . . . . . . . . . . . . . . . . . . . . Escape Stasis 275 | . . . . 6 16 . . . 15 . 13 . 132 16 . . 7 . . . 30 . . . 40 . . . . . Rewire 42 | . . . . . . . . . . . 16 . . . . . . . 24 . . . . . . . 1 . 1 . Trap 6 | . . . . . . . . . . . . . . . . . . . 6 . . . . . . . . . . . Miscellaneous 16 | . . . . . . . . . . . 8 . . . . 8 . . . . . . . . . . . . . . Route ------- -11/Scrapyard -10/Materials (discovered 6 exits: *Mat x3 / [*Min x2] / Sub) -10/Mines (discovered 3 exits: *Mat x2 / *Sub) -9/Materials (discovered 3 exits: *Mat / *Min / *Sto) -9/Storage (discovered 2 exits: *Mat / Gar) -9/Garrison (discovered 3 exits: *Mat x3) -8/Materials (discovered 3 exits: Fac x2 / Gar) -8/Garrison (discovered 3 exits: *Mat x3) -8/Materials -8/Garrison (discovered 3 exits: *Fac x3) -7/Factory (discovered 3 exits: *Fac / [*Low] / Gar) -7/Garrison (discovered 4 exits: *Fac x3 / *Fac) -7/Factory (discovered 2 exits: [*Low] / Gar) -7/Garrison (discovered 3 exits: *Fac x3) -6/Factory (discovered 2 exits: *Fac / *Low) -6/Waste -6/Factory (discovered 3 exits: Low x2 / Gar) -6/Garrison -5/Factory (discovered 3 exits: *Upp x2 / Gar) -5/Garrison (discovered 3 exits: *Fac x3) -4/Factory -4/Extension (discovered 2 exits: *Res / *Cet) -4/Cetus (discovered 2 exits: *Res / *Arc) -4/Archives -4/Hub_04(d) -4/Garrison -3/Research -3/Quarantine -2/Research (discovered 2 exits: *Tes x2) -2/Testing -1/Access (discovered 2 exits: *Sur / Com) To Epsilon Eridani History --------- Turn | Location | Event 11 | -11/Scrapyard | Discovered new exit (range 15) 218 | -11/Scrapyard | Entered Materials 317 | -10/Materials | Build established: Mutant 541 | -10/Materials | Discovered new exit (range 7) 606 | -10/Materials | Discovered new exit (range 3) 804 | -10/Materials | Discovered new exit (range 7) 1027 | -10/Materials | Discovered new exit (range 10) 1099 | -10/Materials | Learned location of Recycling (-9) 1145 | -10/Materials | Loaded intel: 2 recycling unit locations 1205 | -10/Materials | Identified exit to Materials 1221 | -10/Materials | Learned 2 Storage zone layouts 1228 | -10/Materials | Identified exit to Subcaves 1235 | -10/Materials | Learned location of 2 exits from Subcaves 1425 | -10/Materials | Entered Mines 1462 | -10/Mines | Learned location of Storage (-9) 1601 | -10/Mines | Assisted by bots powering up and referring to "LRC-V3" 1622 | -10/Mines | Discovered exit to Subcaves (range 9) 2169 | -10/Mines | Discovered exit to Materials (range 13) 2289 | -10/Mines | Discovered exit to Materials (range 5) 2306 | -10/Mines | Learned location of Zion (-7) 2517 | -10/Mines | Build established: Scavenger-Mutant 2954 | -10/Mines | Entered Materials 2954 | -9/Materials | Accompanied by 2 allies 2954 | -9/Materials | Evolved 2 slots: Propulsion x1, Utility x1 2955 | -9/Materials | Identified exit to Mines 2990 | -9/Materials | Discovered new exit (range 16) 3094 | -9/Materials | Discovered new exit (range 15) 3675 | -9/Materials | Central database locked down 3747 | -9/Materials | Identified exit to Storage 3889 | -9/Materials | Entered Storage 3890 | -9/Storage | Identified exit to Materials 4262 | -9/Storage | Build established: Mutant 4577 | -9/Storage | Assisted by bots powering up and referring to "LRC-V3" 4823 | -9/Storage | Identified exit to Garrison 4846 | -9/Storage | Learned location of 2 exits from Materials 4847 | -9/Storage | Lost 8 allies 4904 | -9/Storage | Learned 4 Recycling zone layouts 4937 | -9/Storage | Entered Garrison 4937 | -9/Garrison | Accompanied by 2 allies 5041 | -9/Garrison | Triggered checkpoint 5078 | -9/Garrison | Garrison Relay disabled 5189 | -9/Garrison | Triggered checkpoint 5349 | -9/Garrison | Rescued a captive Derelict 5350 | -9/Garrison | Rescued a captive Derelict 5469 | -9/Garrison | Discovered exit to Materials (range 15) 5553 | -9/Garrison | Triggered checkpoint 5591 | -9/Garrison | Garrison Relay disabled 5867 | -9/Garrison | Triggered checkpoint 5893 | -9/Garrison | Build established: Scavenger-Mutant 6120 | -9/Garrison | Installed Relay Interface Framework 6190 | -9/Garrison | Discovered exit to Materials (range 12) 6270 | -9/Garrison | Triggered checkpoint 6432 | -9/Garrison | Discovered exit to Materials (range 53) 6432 | -9/Garrison | Discovered exit to Materials (range 14) 6432 | -9/Garrison | Discovered exit to Materials (range 79) 6443 | -9/Garrison | Build established: Bothacker-Mutant 6669 | -9/Garrison | Expanded RIF knowledge: Structural Interface 6833 | -9/Garrison | Entered Materials 6833 | -8/Materials | Evolved 2 slots: Propulsion x1, Utility x1 6834 | -8/Materials | Identified exit to Factory 6979 | -8/Materials | Identified exit to Garrison 6979 | -8/Materials | Entered Garrison 7006 | -8/Garrison | Discovered new exit (range 50) 7006 | -8/Garrison | Discovered new exit (range 70) 7006 | -8/Garrison | Discovered new exit (range 42) 7084 | -8/Garrison | Triggered checkpoint 7161 | -8/Garrison | Triggered checkpoint 7212 | -8/Garrison | Lost 3 parts (2n1u) 7299 | -8/Garrison | Expanded RIF knowledge: Hotswap 7355 | -8/Garrison | Garrison Relay disabled 7437 | -8/Garrison | Entered Materials 7504 | -8/Materials | Identified exit to Garrison 7542 | -8/Materials | Entered Garrison 7978 | -8/Garrison | Triggered checkpoint 8046 | -8/Garrison | Expanded RIF knowledge: Patrol Navigation 8074 | -8/Garrison | Lost 3 allies 8153 | -8/Garrison | Triggered checkpoint 8428 | -8/Garrison | Discovered exit to Factory (range 10) 8539 | -8/Garrison | Triggered checkpoint 8654 | -8/Garrison | Triggered checkpoint 8776 | -8/Garrison | Discovered exit to Factory (range 13) 8893 | -8/Garrison | Triggered checkpoint 8983 | -8/Garrison | Discovered exit to Factory (range 3) 9040 | -8/Garrison | Triggered checkpoint 9126 | -8/Garrison | Entered Factory 9126 | -7/Factory | Evolved 2 slots: Utility x2 9199 | -7/Factory | Garrison activated, responded to threat 9222 | -7/Factory | Discovered new exit (range 15) 9483 | -7/Factory | Discovered new exit (range 15) 9493 | -7/Factory | Identified exit to Garrison 9493 | -7/Factory | Entered Garrison 9493 | -7/Garrison | Accompanied by 1 ally 9590 | -7/Garrison | Rescued a captive Derelict 9591 | -7/Garrison | Rescued a captive Derelict 9665 | -7/Garrison | Triggered checkpoint 9673 | -7/Garrison | Garrison Relay disabled 9707 | -7/Garrison | Triggered checkpoint 9717 | -7/Garrison | Triggered checkpoint 9761 | -7/Garrison | Discovered new exit (range 8) 9803 | -7/Garrison | Triggered checkpoint 9982 | -7/Garrison | Garrison Relay disabled 10087 | -7/Garrison | Triggered checkpoint 10099 | -7/Garrison | Discovered new exit (range 10) 10139 | -7/Garrison | Lost 3 parts (1p1u1w) 10163 | -7/Garrison | Garrison Relay disabled 10199 | -7/Garrison | Triggered checkpoint 10278 | -7/Garrison | Expanded RIF knowledge: Coupler Efficiency 10282 | -7/Garrison | Discovered new exit (range 10) 10297 | -7/Garrison | Triggered checkpoint 10310 | -7/Garrison | Discovered new exit (range 3) 10354 | -7/Garrison | Entered Factory 10354 | -7/Factory | Accompanied by 3 allies 10376 | -7/Factory | Discovered new exit (range 3) 10592 | -7/Factory | Identified exit to Garrison 10655 | -7/Factory | Entered Garrison 10655 | -7/Garrison | Accompanied by 3 allies 10693 | -7/Garrison | Triggered checkpoint 10719 | -7/Garrison | Garrison Relay disabled 10754 | -7/Garrison | Garrison Relay disabled 10804 | -7/Garrison | Build established: Bothacker-Sprinter 10847 | -7/Garrison | Triggered checkpoint 10873 | -7/Garrison | Triggered checkpoint 10929 | -7/Garrison | Found embedded Infiltrators 10984 | -7/Garrison | Lost 3 allies 10987 | -7/Garrison | Triggered checkpoint 10997 | -7/Garrison | Spotted B-75 Beast 11013 | -7/Garrison | Assimilated Beast 4a with formatsys_high 11015 | -7/Garrison | Garrison Relay disabled 11031 | -7/Garrison | Expanded RIF knowledge: Command Fork 11035 | -7/Garrison | Lost 4 allies 11035 | -7/Garrison | Discovered new exit (range 7) 11048 | -7/Garrison | Discovered new exit (range 10) 11054 | -7/Garrison | Garrison Relay disabled 11124 | -7/Garrison | Triggered checkpoint 11243 | -7/Garrison | Discovered new exit (range 12) 11259 | -7/Garrison | Triggered checkpoint 11282 | -7/Garrison | Garrison Relay disabled 11375 | -7/Garrison | Triggered checkpoint 11482 | -7/Garrison | Garrison Relay disabled 11505 | -7/Garrison | Build established: Botlord-Sprinter 11568 | -7/Garrison | Entered Factory 11568 | -6/Factory | Accompanied by 6 allies 11568 | -6/Factory | Evolved 2 slots: Utility x2 11737 | -6/Factory | Discovered new exit (range 8) 11739 | -6/Factory | Identified exit to Lower Caves 11914 | -6/Factory | Repaired Imp. Remote Datajack 11973 | -6/Factory | Discovered new exit (range 6) 11974 | -6/Factory | Identified exit to Factory 12028 | -6/Factory | Fabricated Imp. Hacking Suite? 12274 | -6/Factory | Manually triggered Chute Trap 12274 | -6/Factory | Sucked down chute 12274 | -6/Factory | Entered Waste 12276 | -6/Waste | Spotted C-40 Crusher 12286 | -6/Waste | Spotted C-40 Crusher 12286 | -6/Waste | Spotted C-40 Crusher 12289 | -6/Waste | EMP discharged 12289 | -6/Waste | System corruption reached 10% 12290 | -6/Waste | Discovered new exit (range 16) 12290 | -6/Waste | Spotted C-40 Crusher 12298 | -6/Waste | Identified exit to Factory 12298 | -6/Waste | Entered Factory 12491 | -6/Factory | Spotted B-75 Beast 12564 | -6/Factory | Build established: Bothacker-Sprinter 12565 | -6/Factory | Identified exit to Garrison 12566 | -6/Factory | Entered Garrison 12569 | -6/Garrison | Triggered checkpoint 12633 | -6/Garrison | Lost 4 parts (1n2u1w) 12655 | -6/Garrison | Destroyed 8 combat bots 12857 | -6/Garrison | Core integrity fell below 50% 12858 | -6/Garrison | Rescued a captive Derelict 12858 | -6/Garrison | Rescued a captive Derelict 12871 | -6/Garrison | Expanded RIF knowledge: Threat Obfuscation 12879 | -6/Garrison | Discovered exit to Factory (range 3) 12880 | -6/Garrison | Entered Factory 12880 | -5/Factory | Evolved 2 slots: Utility x2 12894 | -5/Factory | Identified exit to Upper Caves 13061 | -5/Factory | Allied Derelicts emerged from ambush trap array 13119 | -5/Factory | Build established: Hacker-Sprinter 13152 | -5/Factory | Repaired Imp. Remote Datajack 13221 | -5/Factory | Identified exit to Garrison 13234 | -5/Factory | Spotted B-75 Beast 13234 | -5/Factory | Assimilated Beast 6a with formatsys_high 13239 | -5/Factory | Central database locked down 13255 | -5/Factory | Fabricated Cld. VTOL Module? 13290 | -5/Factory | Repaired Lrn. Sensor Array? 13337 | -5/Factory | Entered Garrison 13337 | -5/Garrison | Accompanied by 3 allies 13340 | -5/Garrison | Met a derelict Sapper fleeing the area 13346 | -5/Garrison | Phase Generator disabled 13360 | -5/Garrison | Rewired Executioner 13369 | -5/Garrison | Rewired Executioner 13372 | -5/Garrison | Triggered checkpoint 13374 | -5/Garrison | Triggered checkpoint 13389 | -5/Garrison | Discovered new exit (range 43) 13389 | -5/Garrison | Discovered new exit (range 60) 13389 | -5/Garrison | Discovered new exit (range 39) 13440 | -5/Garrison | Found Prototype Processor 13440 | -5/Garrison | Identified Exp. Core Analyzer 13453 | -5/Garrison | Garrison Relay disabled 13457 | -5/Garrison | Triggered checkpoint 13573 | -5/Garrison | Triggered checkpoint 13574 | -5/Garrison | Expanded RIF knowledge: Program Shield 13591 | -5/Garrison | Triggered checkpoint 13655 | -5/Garrison | Triggered checkpoint 13712 | -5/Garrison | Garrison Relay disabled 13849 | -5/Garrison | Garrison Relay disabled 13855 | -5/Garrison | Triggered checkpoint 13878 | -5/Garrison | Identified exit to Factory 13895 | -5/Garrison | Found Unknown Launcher 13895 | -5/Garrison | Identified Gamma Bomb Array 13981 | -5/Garrison | Triggered checkpoint 14034 | -5/Garrison | Garrison Relay disabled 14037 | -5/Garrison | Lost 3 allies 14042 | -5/Garrison | Found embedded Infiltrators 14116 | -5/Garrison | Build established: Hacker-Mutant 14190 | -5/Garrison | Entered Factory 14190 | -4/Factory | Accompanied by 3 allies 14190 | -4/Factory | Evolved 2 slots: Propulsion x1, Utility x1 14219 | -4/Factory | Garrison activated, responded to threat 14261 | -4/Factory | Fabricated Cld. VTOL Module? 14288 | -4/Factory | Repaired Imp. Medium Armor Plating? 14343 | -4/Factory | Discovered new exit (range 11) 14346 | -4/Factory | Identified exit to Extension 14366 | -4/Factory | Entered Extension 14386 | -4/Extension | Lost 3 parts (1p2u) 14398 | -4/Extension | Rescued a captive Derelict 14400 | -4/Extension | Rescued a captive Derelict 14765 | -4/Extension | Build established: Botlord-Scout 14924 | -4/Extension | Spotted B-86 Titan 15000 | -4/Extension | Lost 9 allies 15320 | -4/Extension | Spotted B-86 Titan 15622 | -4/Extension | Rescued a captive Derelict 15638 | -4/Extension | Build established: Bothacker-Scout 15678 | -4/Extension | Rescued A7 15773 | -4/Extension | Discovered new exit (range 10) 15773 | -4/Extension | Discovered new exit (range 6) 15781 | -4/Extension | Identified exit to Cetus 15846 | -4/Extension | Entered Cetus 15846 | -4/Cetus | Accompanied by 5 allies (A7) 15851 | -4/Cetus | Acquired a Cetus Manufacturing Module code from A7 15858 | -4/Cetus | Spotted Cetus Guard 15862 | -4/Cetus | Spotted Cetus Guard 15862 | -4/Cetus | Spotted Cetus Guard 15865 | -4/Cetus | Spotted Cetus Guard 15871 | -4/Cetus | Allies destroyed Cetus Guard 15877 | -4/Cetus | Destroyed Cetus Guard 15883 | -4/Cetus | Allies destroyed Cetus Guard 15889 | -4/Cetus | Allies destroyed Cetus Guard 15919 | -4/Cetus | Cetus Manufacturing Module disabled 15950 | -4/Cetus | Failed to start Cetus Manufacturing Module 15953 | -4/Cetus | Discovered new exit (range 23) 15991 | -4/Cetus | Spotted Cetus Guard 15991 | -4/Cetus | Spotted Cetus Guard 15992 | -4/Cetus | Destroyed Cetus Guard 15994 | -4/Cetus | Spotted Cetus Guard 15994 | -4/Cetus | Spotted Cetus Guard 16003 | -4/Cetus | Destroyed Cetus Guard 16005 | -4/Cetus | Destroyed Cetus Guard 16018 | -4/Cetus | Destroyed Cetus Guard 16038 | -4/Cetus | Discovered new exit (range 22) 16042 | -4/Cetus | Met Revision 17 16061 | -4/Cetus | Murdered A7 16066 | -4/Cetus | Extracted ID and sensor layout for unrecognized location from A7's data core 16069 | -4/Cetus | Found Prototype Protection 16069 | -4/Cetus | Identified Med. Regenerative Plating 16086 | -4/Cetus | Identified exit to Archives 16087 | -4/Cetus | Entered Archives 16136 | -4/Archives | Discovered new exit (range 13) 16139 | -4/Archives | Identified exit to Hub_04(d) 16140 | -4/Archives | Entered Hub_04(d) 16153 | -4/Hub_04(d) | Spotted B-86 Titan 16157 | -4/Hub_04(d) | Identified exit to Garrison 16157 | -4/Hub_04(d) | Entered Garrison 16157 | -4/Garrison | Spotted B-90 Cyclops 16177 | -4/Garrison | Triggered checkpoint 16185 | -4/Garrison | Garrison Relay disabled 16246 | -4/Garrison | Lost 3 parts (1p1n1u) 16246 | -4/Garrison | Spotted B-90 Cyclops 16301 | -4/Garrison | Triggered checkpoint 16508 | -4/Garrison | Triggered checkpoint 16510 | -4/Garrison | Spotted B-86 Titan 16515 | -4/Garrison | Triggered checkpoint 16521 | -4/Garrison | Triggered checkpoint 16574 | -4/Garrison | Lost 5 allies 16600 | -4/Garrison | Destroyed B-86 Titan 16612 | -4/Garrison | Heavy support dispatched to Research 16682 | -4/Garrison | Core integrity fell below 50% 16698 | -4/Garrison | Discovered new exit (range 8) 16700 | -4/Garrison | Identified exit to Research 16701 | -4/Garrison | Lost 5 parts (2n2u1w) 16706 | -4/Garrison | Entered Research 16706 | -3/Research | Evolved 2 slots: Power x1, Weapon x1 16810 | -3/Research | Spotted B-86 Titan 16870 | -3/Research | Build established: Mutant 16893 | -3/Research | Garrison activated, responded to threat 16907 | -3/Research | Found Fusion Bomb Launcher 17028 | -3/Research | Found Hvy. Reflective Plating 17122 | -3/Research | Lost 3 parts (1n2u) 17406 | -3/Research | System corruption reached 10% 17551 | -3/Research | Discovered new exit (range 9) 17558 | -3/Research | Identified exit to Quarantine 17637 | -3/Research | Found Prototype Hackware 17637 | -3/Research | Identified Exp. Hacking Suite 17705 | -3/Research | Cargo convoy interrupted 17722 | -3/Research | Lost 3 parts (1p1n1w) 17779 | -3/Research | Entered Quarantine 17891 | -3/Quarantine | Lost 4 parts (1n1u2w) 18056 | -3/Quarantine | Found Alien Impact Weapon 18344 | -3/Quarantine | Build established: Scavenger-Tank 18616 | -3/Quarantine | Found Alien Artifact 18633 | -3/Quarantine | Discovered new exit (range 8) 18636 | -3/Quarantine | Identified exit to Research 18637 | -3/Quarantine | Entered Research 18637 | -2/Research | Evolved 2 slots: Propulsion x1, Utility x1 18651 | -2/Research | Identified exit to Testing 18691 | -2/Research | Entered Testing 18700 | -2/Testing | Rewired PG-YG17BCEODE 18718 | -2/Testing | Found Portable AFG 18721 | -2/Testing | Lost 3 parts (2n1u) 18727 | -2/Testing | Spotted Striker 18728 | -2/Testing | Spotted Striker 18741 | -2/Testing | Build established: Hacker-Mutant 18804 | -2/Testing | Discovered new exit (range 6) 18805 | -2/Testing | Identified exit to Access 18808 | -2/Testing | Rewired PX-CTX73U258E 18824 | -2/Testing | Entered Access 18824 | -1/Access | Evolved 2 slots: Utility x2 18830 | -1/Access | Identified exit to Command 18927 | -1/Access | Fabricated T-07 Excavator? 19060 | -1/Access | Identified exit to Surface 19159 | -1/Access | Spotted B-99 Colossus 19190 | -1/Access | Spotted B-99 Colossus 19206 | *** | Escaped! Last Messages --------------- 19195_ Slug penetrates Sealed Heavy Doors. 19198_ Imp. Hacking Suite destroyed. 19198_ Slug penetrates Sealed Heavy Doors. 19198_ Penetrated by Slug. 19200_ Q-thruster destroyed. 19202_ Quantum Reactor destroyed. 19202_ Adv. Melee Analysis Suite destroyed. 19202_ Critical hit (Blast). 19202_ Slug penetrates Sealed Heavy Doors. 19202_ Penetrated by Slug. 19202_ Slug penetrates Sealed Heavy Doors. 19202_ Slug penetrates Main Access Shell. 19202_ Slug penetrates Sealed Heavy Doors. 19202_ Main Access Shell breached. 19204_ P-80 Master resets B-99 Colossus, system corruption cleaned. 19204_ Acquired 1 matter. 19205_ Xenon Bombardment Thruster destroyed. 19205_ Penetrated by Slug. 19205_ Slug penetrates Main Access Shell. Map ----- +----------------------------------------------------+ | ????????????#####+#+###!= # #????????? | | ??????????????????????#%*% # """"" #????????? | | ??????????????????????#! # """"" #????????? | | ??????????????????????# #% """"" #????????? | | ??????????????????????# # """"" #????????? | | ??????????????????????# # """"" #????????? | | ??????????????????????# " #????????? | | ??????????????????????# " BB #????????? | | ??????????????????????# # #????????? | | ???????????????????#### "#############????????? | | ???????????????????# #??????????????????? | | ???????????????????# #??????????????????? | | ???????????????????# #??????????????????? | | ???????????????????# #??????????????????? | | ???????????????????# #??????????????????? | | ???????????????????# % #??????????????????? | | ???????????????????# %#??????????????????? | | ???????????????????#""""""" ""#??????????????????? | | ??????????????????????????" "????????????????????? | | ??????????????????????????" "????????????????????? | | ???????????????????#""""""" ""#??????????????????? | | ???????????????????# #??????????????????? | | ???????????????????# """"" #??????????????????? | | ??????????????????????" " #??????????????????? | | ??????????????????????" "" " #??????????????????? | | ??????????????????????" "@ " #??????????????????? | | ??????????????????????" " #??????????????????? | | ??????????????????????"""""" #??????????????????? | | ???????????????????????????? #??????????????????? | | ???????????????????????????? #??????????????????? | | ????????????????????????????"""??????????????????? | | ?????????????????????????????????????????????????? | | ?????????????????????????????????????????????????? | | ?????????????????????????????????????????????????? | | ?????????????????????????????????????????????????? | | ?????????????????????????????????????????????????? | | ?????????????????????????????????????????????????? | | ?????????????????????????????????????????????????? | | ?????????????????????????????????????????????????? | | ?????????????????????????????????????????????????? | | ?????????????????????????????????????????????????? | | ?????????????????????????????????????????????????? | | ?????????????????????????????????????????????????? | | ?????????????????????????????????????????????????? | | ?????????????????????????????????????????????????? | | ?????????????????????????????????????????????????? | | ?????????????????????????????????????????????????? | | ?????????????????????????????????????????????????? | | ?????????????????????????????????????????????????? | | ?????????????????????????????????????????????????? | +----------------------------------------------------+ Best States ------------- Heat Dissipation 122 Energy Generation 41 Energy Capacity 1340 Matter Stores 300 Matter Capacity 300 Sight Range 23 Robot Scan Range 18 Terrain Scan Density 10 Additional Mass Support 16 Armor Coverage 600 Resistance: TH 25 Resistance: EX 50 Propulsion Shielding 66 Phase Shifting 10 Evasion (%) 85 Targeting Accuracy 8 Melee Accuracy 8 Core Analysis 8 Recoil Reduction 4 Offensive Hacking 52 Defensive Hacking 24 Relay Coupler Types 5 Relay Coupler Value 138 Item Schematics ----------------- Imp. Hacking Suite | -6/Factory | Hacked Adv. Hacking Suite | -6/Factory | Hacked Cld. VTOL Module | -5/Factory | Hacked Imp. Remote Datajack | -5/Factory | Hacked Robot Schematics ------------------ None Fabricated ------------ Imp. Hacking Suite | x1 | -6/Factory Cld. VTOL Module | x1 | -5/Factory Cld. VTOL Module | x1 | -4/Factory T-07 Excavator | x2 | -1/Access | Preloaded Repaired ---------- Imp. Remote Datajack | 27% | -6/Factory Imp. Remote Datajack | 6% | -5/Factory Lrn. Sensor Array | 37% | -5/Factory Imp. Medium Armor Plating | 33% | -4/Factory Studied --------- Lgt. Treads | -9/Materials | Hacked Impulse Thruster Array | -3/Quarantine | Hacked Mic. Antimatter Reactor | -3/Quarantine | Hacked Alien Tech Used ----------------- None Achievements -------------- Hack The Planet Hackerman Versatile Challenges ------------ None Game ------ Seed ConceptHoverBooster Manual? 0 Play Time 03:06:15 Cumulative 260.8 hours Start 2026.01.17 @ 18:54:23 End 2026.01.17 @ 22:17:34 Sessions 1 Manual Loads 0 Difficulty Rogue Special Mode None Game No. 246 Rogue 246 Adventurer 0 Explorer 0 Win Type 0 Total 13 Types 9/1/2/0/0/0/0/0/0/1 Lore% 88 Gallery% 79 Achievement% 63 Wizard Run 0 Options --------- Layout 1 ASCII 0 Keyboard 1 Movement Arrows Keybinds 0 Fullscreen 1 Font 24/Smallcaps Map View 50x40 Zoom Use 0% Tactical HUD 1 Map Filters NONE Filters NONE Steam 1 RUN: 356e2ede-39f6-410e-82d9-dbc7114c6d2a